lending/lending_fUSD_20260310
["ID","MTS","AMOUNT","RATE_DAILY","PERIOD"]
[408178577,1773182125802,-500.0,0.00048661,2]
[408178578,1773182125812,-500.0,0.00048661,2]
[408178579,1773182125821,-500.0,0.00048661,2]
[408178580,1773182125831,-473.0,0.00048661,2]
[408178581,1773182125842,-150.0,0.00048669,120]
[408178582,1773182125852,-848.60037243,0.0004869,120]
[408178583,1773182125862,-13023.6670289,0.000487,30]
[408178584,1773182125872,-759.39,0.00048701,120]
[408178585,1773182125881,-150.0,0.00048724,120]
[408178586,1773182125891,-150.73,0.0004874,120]
[408178587,1773182125901,-600.0,0.00048767,60]
[408178588,1773182125911,-2871.6,0.00048767,120]
[408178589,1773182125921,-500.0,0.00048767,60]
[408178590,1773182125930,-184431.81731591,0.00048799,2]
[408178591,1773182125940,-1004.07143198,0.000488,15]
[408178592,1773182125950,-3530.95043436,0.000488,120]
[408178593,1773182125959,-5511.91622365,0.000488,120]
[408178594,1773182125969,-131129.98045559,0.000488,120]
[408178595,1773182125979,-17649.78581375,0.000488,120]
[408178596,1773182125989,-2000.0,0.000488,2]
[408178597,1773182125999,-1517.49307593,0.000488,120]
[408178598,1773182126008,-150.0,0.00048801,120]
[408178599,1773182126018,-150.0,0.00048811,120]
[408178600,1773182126028,-150.0,0.0004882,120]
[408178601,1773182126038,-150.73,0.0004884,120]
[408178602,1773182126049,-504.13,0.00048868,5]
[408178603,1773182126058,-637.78179773,0.0004888,120]
[408178604,1773182126068,-4537.00737,0.0004888,120]
[408178605,1773182126077,-150.0,0.0004888,120]
[408178606,1773182126087,-862.85853419,0.00048886,120]
[408178607,1773182126097,-456.0,0.00048886,120]
[408178608,1773182126110,-8564.72036342,0.00048888,120]
[408178609,1773182126120,-215938.64555526,0.00048889,120]
[408178610,1773182126130,-810.89729393,0.00048889,120]
[408178611,1773182126139,-258.76551089,0.00048889,120]
[408178612,1773182126149,-1140.06527411,0.00048899,120]
[408178613,1773182126158,-1687.47408188,0.000489,120]
[408178614,1773182126168,-1280.58641498,0.000489,120]
[408178615,1773182126179,-5000.0,0.000489,120]
[408178616,1773182126190,-199.36802585,0.000489,120]
[408178617,1773182126199,-150.73,0.0004894,120]
[408178618,1773182126209,-759.39,0.00048975,120]
[408178619,1773182126219,-45894.93494,0.0004899,120]
[408178620,1773182126228,-217.0,0.0004899,30]
[408178621,1773182126237,-214.0,0.0004899,30]
[408178622,1773182126247,-1000.0,0.00048999,120]
[408178623,1773182126257,-50000.0,0.00049,77]
[408178624,1773182126266,-150.0,0.00049,120]
[408178625,1773182126276,-429.57513317,0.00049,120]
[408178626,1773182126286,-803.30167291,0.00049,30]
[408178627,1773182126295,-863.35039188,0.00049,30]
[408178628,1773182126305,-952.4250879,0.00049,120]
[408178629,1773182126315,-1234.91311702,0.00049,120]
[408178630,1773182126324,-2000.0,0.00049,120]
[408178631,1773182126334,-1315.0584686,0.00049,120]
[408178632,1773182126344,-4572.16858795,0.00049,120]
[408178633,1773182126354,-3300.0,0.00049,120]
[408178634,1773182126364,-3300.0,0.00049,120]
[408178635,1773182126374,-6806.991266,0.00049,120]
[408178636,1773182126384,-1000.0,0.00049,120]
[408178637,1773182126394,-150.04416315,0.00049,120]
[408178638,1773182126404,-2000.0,0.00049,120]
[408178639,1773182126413,-1832.65495975,0.00049,120]
[408178640,1773182126423,-17500.0,0.00049,120]
[408178641,1773182126433,-20000.0,0.00049,120]
[408178642,1773182126442,-1000.0,0.00049,120]
[408178643,1773182126452,-1578.33519617,0.00049,90]
[408178644,1773182126462,-420.29540642,0.00049,120]
[408178645,1773182126471,-285.4074821,0.00049,30]
[408178646,1773182126480,-8378.3829873,0.00049,120]
[408178647,1773182126490,-10000.0,0.00049,60]
[408178648,1773182126499,-795.39436524,0.00049,120]
[408178649,1773182126509,-351.37948716,0.00049,120]
[408178650,1773182126519,-20000.0,0.00049,120]
[408178651,1773182126528,-286.2847893,0.00049,120]
[408178652,1773182126538,-4999.999999,0.00049,120]
[408178653,1773182126547,-1000.0,0.00049,120]
[408178654,1773182126557,-150.0,0.00049,2]
[408178655,1773182126568,-23955.0,0.00049,120]
[408178656,1773182126579,-1112.47,0.00049,120]
[408178657,1773182126589,-154.0,0.00049,120]
[408178658,1773182126599,-6809.37626905,0.00049,120]
[408178659,1773182126608,-382.0,0.00049,120]
[408178660,1773182126618,-500.0,0.00049,120]
[408178661,1773182126627,-150.0,0.00049015,120]
[408178662,1773182126637,-150.73,0.0004904,120]
[408178663,1773182126646,-2871.6,0.00049041,120]
[408178664,1773182126655,-62575.0,0.0004905,60]
[408178665,1773182126664,-456.58019545,0.00049098,120]
[408178666,1773182126674,-150.0,0.00049132,120]
[408178667,1773182126684,-217.80954864,0.00049139,120]
[408178668,1773182126694,-217.80954863,0.00049139,120]
[408178669,1773182126703,-150.73,0.0004914,120]
[408178670,1773182126713,-500.0,0.00049143,31]
[408178671,1773182126723,-150.0,0.0004915,120]
[408178672,1773182126733,-5504.86669076,0.000492,120]
[408178673,1773182126742,-5813.13295934,0.000492,60]
[408178674,1773182126751,-150.0,0.00049228,120]
[408178675,1773182126761,-150.73,0.0004924,120]
[408178676,1773182126770,-759.39,0.00049249,120]
[408178677,1773182126779,-500.0,0.00049315,2]
[408178678,1773182126789,-500.0,0.00049315,2]
[408178679,1773182126798,-500.0,0.00049315,2]
[408178680,1773182126807,-500.0,0.00049315,2]
[408178681,1773182126817,-500.0,0.00049315,2]
[408178682,1773182126826,-500.0,0.00049315,2]
[408178683,1773182126835,-500.0,0.00049315,2]
[408178684,1773182126844,-500.0,0.00049315,2]
[408178685,1773182126853,-614.14078849,0.00049315,2]
[408178686,1773182126862,-1258.54,0.00049315,2]
[408178687,1773182126871,-1258.54,0.00049315,2]
[408178688,1773182126880,-1258.54,0.00049315,2]
[408178689,1773182126890,-1258.54,0.00049315,2]
[408178690,1773182126899,-1258.54,0.00049315,2]
[408178691,1773182126908,-1258.54,0.00049315,2]
[408178692,1773182126917,-1258.54,0.00049315,2]
[408178693,1773182126927,-1258.54,0.00049315,2]
[408178694,1773182126936,-1258.54,0.00049315,2]
[408178695,1773182126945,-1258.54,0.00049315,2]
[408178696,1773182126954,-1258.54,0.00049315,2]
[408178697,1773182126963,-1258.54,0.00049315,2]
[408178698,1773182126973,-1258.54,0.00049315,2]
[408178699,1773182126982,-2000.0,0.00049315,30]
[408178700,1773182126991,-2000.0,0.00049315,30]
[408178701,1773182127000,-2000.0,0.00049315,30]
[408178702,1773182127009,-2000.0,0.00049315,30]
[408178703,1773182127018,-2000.0,0.00049315,30]
[408178704,1773182127027,-2000.0,0.00049315,30]
[408178705,1773182127036,-2000.0,0.00049315,30]
[408178706,1773182127045,-2001.95616419,0.00049315,30]
[408178707,1773182127055,-666.0,0.00049315,120]
[408178708,1773182127064,-666.0,0.00049315,120]
[408178709,1773182127074,-666.0,0.00049315,120]
[408178710,1773182127083,-666.0,0.00049315,120]
[408178711,1773182127092,-666.0,0.00049315,120]
[408178712,1773182127102,-666.0,0.00049315,120]
[408178713,1773182127115,-666.0,0.00049315,120]
[408178714,1773182127124,-666.0,0.00049315,120]
[408178715,1773182127133,-666.0,0.00049315,120]
[408178716,1773182127142,-666.0,0.00049315,120]
[408178717,1773182127152,-614.55067158,0.00049315,120]
[408178718,1773182127161,-2000.0,0.00049315,30]
[408178719,1773182127171,-2000.0,0.00049315,30]
[408178720,1773182127180,-2000.0,0.00049315,30]
[408178721,1773182127189,-2000.0,0.00049315,30]
[408178722,1773182127198,-2000.0,0.00049315,30]
[408178723,1773182127209,-2000.0,0.00049315,30]
[408178724,1773182127218,-2000.0,0.00049315,30]
[408178725,1773182127598,-2000.0,0.00049315,30]
[408178726,1773182127609,-500.0,0.00049315,120]
[408178727,1773182127618,-541.66995202,0.00049315,120]
[408178728,1773182127627,-1000.0,0.00049315,120]
[408178729,1773182127636,-1000.0,0.00049315,120]
[408178730,1773182127646,-1000.0,0.00049315,120]
[408178731,1773182127656,-577.58412464,0.00049315,120]
[408178732,1773182127665,-871.68626118,0.00049315,120]
[408178733,1773182127674,-500.0,0.00049315,60]
[408178734,1773182127684,-500.0,0.00049315,120]
[408178735,1773182127694,-500.0,0.00049315,120]
[408178736,1773182127703,-177.25195018,0.00049315,120]
[408178737,1773182127713,-2871.6,0.00049315,120]
[408178738,1773182127723,-1000.0,0.00049315,120]
[408178739,1773182127732,-1048.851,0.00049315,120]
[408178740,1773182127742,-3000.0,0.00049315,120]
[408178741,1773182127751,-3000.0,0.00049315,120]
[408178742,1773182127761,-3000.0,0.00049315,120]
[408178743,1773182127770,-332.9,0.00049315,120]
[408178744,1773182127779,-312.6,0.00049315,120]
[408178745,1773182127788,-800.0,0.00049315,32]
[408178746,1773182127798,-809.71674771,0.00049315,32]
[408178747,1773182127809,-150.73,0.0004934,120]
[408178748,1773182127819,-2927.0,0.00049378,70]
[408178749,1773182127829,-3000.0,0.000494,90]
[408178750,1773182127838,-3000.0,0.000494,90]
[408178751,1773182127848,-154.14333116,0.00049407,120]
[408178752,1773182127857,-150.0,0.00049427,120]
[408178753,1773182127867,-150.73,0.0004944,120]
[408178754,1773182127877,-810.89729393,0.00049444,120]
[408178755,1773182127887,-258.76551089,0.00049444,120]
[408178756,1773182127897,-150.0,0.00049462,120]
[408178757,1773182127907,-2000.0,0.000495,120]
[408178758,1773182127916,-3000.0,0.000495,120]
[408178759,1773182127926,-2232.28886886,0.000495,120]
[408178760,1773182127935,-1000.0,0.000495,120]
[408178761,1773182127945,-5274.31891515,0.000495,120]
[408178762,1773182127955,-10000.0,0.000495,60]
[408178763,1773182127964,-14207.0,0.000495,120]
[408178764,1773182127973,-27123.677732,0.000495,120]
[408178765,1773182127983,-1000.0,0.000495,30]
[408178766,1773182127993,-1000.0,0.000495,30]
[408178767,1773182128003,-1000.0,0.000495,30]
[408178768,1773182128013,-1000.0,0.000495,30]
[408178769,1773182128022,-1000.0,0.000495,30]
[408178770,1773182128031,-1000.0,0.000495,30]
[408178771,1773182128041,-1000.0,0.000495,30]
[408178772,1773182128051,-1000.0,0.000495,30]
[408178773,1773182128060,-1000.0,0.000495,30]
[408178774,1773182128070,-1000.0,0.000495,30]
[408178775,1773182128079,-1000.0,0.000495,30]
[408178776,1773182128089,-425.86269467,0.000495,30]
[408178777,1773182128100,-45409.95256295,0.000495,120]
[408178778,1773182128113,-42192.5822703,0.000495,120]
[408178779,1773182128123,-152.0,0.000495,120]
[408178780,1773182128134,-382.0,0.000495,120]
[408178781,1773182128145,-500.0,0.000495,120]
[408178782,1773182128156,-150.0,0.00049517,120]
[408178783,1773182128165,-759.39,0.00049523,120]
[408178784,1773182128175,-150.73,0.0004954,120]
[408178785,1773182128186,-150.0,0.00049585,120]
[408178786,1773182128196,-2871.6,0.00049589,120]
[408178787,1773182128207,-5000.0,0.000496,120]
[408178788,1773182128217,-10014.0,0.000496,60]
[408178789,1773182128227,-961.83,0.00049613,30]
[408178790,1773182128237,-1687.91,0.00049613,30]
[408178791,1773182128247,-2222.6223792,0.00049616,120]
[408178792,1773182128256,-45000.0,0.00049617,120]
[408178793,1773182128265,-150.73,0.0004964,120]
[408178794,1773182128275,-5622.0,0.0004965,120]
[408178795,1773182128285,-150.0,0.00049678,120]
[408178796,1773182128295,-150.0,0.00049718,120]
[408178797,1773182128305,-150.73,0.0004974,120]
[408178798,1773182128315,-10000.0,0.00049748,60]
[408178799,1773182128324,-5025.01474616,0.0004975,120]
[408178800,1773182128334,-759.39,0.00049797,120]
[408178801,1773182128344,-150.0,0.00049799,120]
[408178802,1773182128353,-200554.19971072,0.000498,30]
[408178803,1773182128363,-52832.7897463,0.000498,30]
[408178804,1773182128372,-50000.0,0.000498,60]
[408178805,1773182128382,-50000.0,0.000498,90]
[408178806,1773182128392,-1565.81821799,0.000498,30]
[408178807,1773182128402,-1550.04418859,0.000498,30]
[408178808,1773182128412,-1000.0,0.000498,120]
[408178809,1773182128421,-1312.34124004,0.000498,120]
[408178810,1773182128432,-50000.0,0.000498,120]
[408178811,1773182128442,-150.0,0.000498,120]
[408178812,1773182128452,-5924.36915498,0.000498,120]
[408178813,1773182128462,-50000.0,0.0004981,120]
[408178814,1773182128472,-50000.0,0.0004982,120]
[408178815,1773182128481,-150.0,0.00049825,60]
[408178816,1773182128491,-50000.0,0.0004983,120]
[408178817,1773182128501,-150.73,0.0004984,120]
[408178818,1773182128511,-600.0,0.00049863,60]
[408178819,1773182128521,-500.0,0.00049863,60]
[408178820,1773182128531,-2871.6,0.00049863,120]
[408178821,1773182128541,-1109.0,0.00049873,30]
[408178822,1773182128551,-1109.0,0.00049873,30]
[408178823,1773182128561,-1258.54,0.00049899,2]
[408178824,1773182128571,-180.36530686,0.000499,30]
[408178825,1773182128580,-1579.85895807,0.000499,120]
[408178826,1773182128590,-327.07591715,0.000499,120]
[408178827,1773182128599,-15479.7184,0.000499,120]
[408178828,1773182128610,-2000.0,0.000499,120]
[408178829,1773182128620,-150.0,0.0004992,2]
[408178830,1773182128630,-150.73,0.0004994,120]
[408178831,1773182128639,-150.0,0.00049951,120]
[408178832,1773182128648,-150.0,0.00049952,120]
[408178833,1773182128658,-1000.0,0.00049999,120]
[408178834,1773182128667,-29873.24419037,0.00049999,120]
[408178835,1773182128677,-50000.0,0.0005,80]
[408178836,1773182128687,-150.0,0.0005,40]
[408178837,1773182128696,-51431.06141017,0.0005,2]
[408178838,1773182128706,-162.1348671,0.0005,60]
[408178839,1773182128715,-1146.60663921,0.0005,2]
[408178840,1773182128725,-155.0478815,0.0005,30]
[408178841,1773182128735,-1000000.0,0.0005,88]
[408178842,1773182128745,-1000000.0,0.0005,45]
[408178843,1773182128755,-1000000.0,0.0005,95]
[408178844,1773182128764,-1000000.0,0.0005,41]
[408178845,1773182128774,-1000000.0,0.0005,44]
[408178846,1773182128783,-1000000.0,0.0005,41]
[408178847,1773182128793,-270877.90149771,0.0005,120]
[408178848,1773182128802,-3940.0,0.0005,120]
[408178849,1773182128812,-632.7044013,0.0005,120]
[408178850,1773182128821,-2607.18562214,0.0005,120]
[408178851,1773182128830,-150.0,0.0005,120]
[408178852,1773182128840,-261.67,0.0005,14]
[408178853,1773182128849,-173.63395883,0.0005,120]
[408178854,1773182128858,-2190.15804706,0.0005,30]
[408178855,1773182128868,-1872.19587288,0.0005,120]
[408178856,1773182128877,-2383.81323843,0.0005,120]
[408178857,1773182128887,-406.26758967,0.0005,7]
[408178858,1773182128896,-520.65619981,0.0005,120]
[408178859,1773182128905,-600.0,0.0005,14]
[408178860,1773182128915,-1392.30871453,0.0005,120]
[408178861,1773182128924,-1104.59259413,0.0005,120]
[408178862,1773182128933,-689.38771762,0.0005,120]
[408178863,1773182128942,-226.70119036,0.0005,120]
[408178864,1773182128952,-2093.8314887,0.0005,120]
[408178865,1773182128962,-500.0,0.0005,30]
[408178866,1773182128972,-1913.72880674,0.0005,120]
[408178867,1773182128982,-2234.88938965,0.0005,120]
[408178868,1773182128992,-200.0,0.0005,120]
[408178869,1773182129001,-161.19378865,0.0005,120]
[408178870,1773182129011,-3038.05056672,0.0005,120]
[408178871,1773182129021,-766.21872741,0.0005,120]
[408178872,1773182129031,-203.78,0.0005,120]
[408178873,1773182129041,-444.0,0.0005,120]
[408178874,1773182129050,-4031.63371156,0.0005,120]
[408178875,1773182129060,-2624.63084838,0.0005,30]
[408178876,1773182129069,-3986.16772437,0.0005,120]
[408178877,1773182129080,-2651.63522562,0.0005,60]
[408178878,1773182129090,-3032.10706319,0.0005,120]
[408178879,1773182129099,-2860.3083078,0.0005,120]
[408178880,1773182129111,-7594.54943285,0.0005,120]
[408178881,1773182129121,-3122.39538169,0.0005,120]
[408178882,1773182129130,-503.48,0.0005,120]
[408178883,1773182129140,-7000.0,0.0005,120]
[408178884,1773182129151,-2000.0,0.0005,120]
[408178885,1773182129161,-2000.0,0.0005,120]
[408178886,1773182129171,-2000.0,0.0005,120]
[408178887,1773182129181,-2000.0,0.0005,120]
[408178888,1773182129192,-2000.0,0.0005,120]
[408178889,1773182129201,-2000.0,0.0005,120]
[408178890,1773182129211,-2000.0,0.0005,120]
[408178891,1773182129221,-2000.0,0.0005,120]
[408178892,1773182129230,-2000.0,0.0005,120]
[408178893,1773182129240,-2000.0,0.0005,120]
[408178894,1773182129250,-2000.0,0.0005,120]
[408178895,1773182129259,-2000.0,0.0005,120]
[408178896,1773182129269,-2000.0,0.0005,120]
[408178897,1773182129278,-2000.0,0.0005,120]
[408178898,1773182129288,-2000.0,0.0005,120]
[408178899,1773182129297,-2000.0,0.0005,120]
[408178900,1773182129307,-2000.0,0.0005,120]
[408178901,1773182129317,-2000.0,0.0005,120]
[408178902,1773182129327,-2000.0,0.0005,120]
[408178903,1773182129336,-2000.0,0.0005,120]
[408178904,1773182129346,-2000.0,0.0005,120]
[408178905,1773182129356,-2000.0,0.0005,120]
[408178906,1773182129366,-2000.0,0.0005,120]
[408178907,1773182129375,-2000.0,0.0005,120]
[408178908,1773182129384,-2000.0,0.0005,120]
[408178909,1773182129394,-2000.0,0.0005,120]
[408178910,1773182129403,-2000.0,0.0005,120]
[408178911,1773182129413,-2000.0,0.0005,120]
[408178912,1773182129423,-2000.0,0.0005,120]
[408178913,1773182129433,-2000.0,0.0005,120]
[408178914,1773182129443,-2000.0,0.0005,120]
[408178915,1773182129452,-2000.0,0.0005,120]
[408178916,1773182129461,-2000.0,0.0005,120]
[408178917,1773182129470,-2000.0,0.0005,120]
[408178918,1773182129480,-2000.0,0.0005,120]
[408178919,1773182129489,-2000.0,0.0005,120]
[408178920,1773182129499,-2000.0,0.0005,120]
[408178921,1773182129507,-2000.0,0.0005,120]
[408178922,1773182129517,-2000.0,0.0005,120]
[408178923,1773182129527,-2000.0,0.0005,120]
[408178924,1773182129536,-2000.0,0.0005,120]
[408178925,1773182129545,-2000.0,0.0005,120]
[408178926,1773182129554,-2000.0,0.0005,120]
[408178927,1773182129564,-2000.0,0.0005,120]
[408178928,1773182129574,-675.71,0.0005,120]
[408178929,1773182129583,-200.0,0.0005,120]
[408178930,1773182129592,-3000.0,0.0005,90]
[408178931,1773182129601,-677.632352,0.0005,120]
[408178932,1773182129610,-1000.0,0.0005,120]
[408178933,1773182129620,-2500.0,0.0005,30]
[408178934,1773182129630,-1000.0,0.0005,120]
[408178935,1773182129639,-150.0,0.0005,120]
[408178936,1773182129649,-478.2212704,0.0005,120]
[408178937,1773182129658,-10066.0117624,0.0005,120]
[408178938,1773182129667,-605.0,0.0005,90]
[408178939,1773182129678,-1742.49816153,0.0005,45]
[408178940,1773182129687,-204.08034861,0.0005,30]
[408178941,1773182129697,-426.68567109,0.0005,120]
[408178942,1773182129707,-2269.56,0.0005,120]
[408178943,1773182129717,-810.89729393,0.0005,120]
[408178944,1773182129726,-1025.0,0.0005,120]
[408178945,1773182129736,-50000.0,0.0005,120]
[408178946,1773182129745,-2500.0,0.0005,120]
[408178947,1773182129754,-2000.0,0.0005,120]
[408178948,1773182129764,-1110.0,0.0005,15]
[408178949,1773182129774,-150.0,0.0005,120]
[408178950,1773182129783,-11000.0,0.0005,90]
[408178951,1773182129793,-4000.0,0.0005,120]
[408178952,1773182129802,-210.6,0.0005,30]
[408178953,1773182129811,-299.0,0.0005,120]
[408178954,1773182129821,-110166.88495524,0.0005,120]
[408178955,1773182129829,-698.0,0.0005,60]
[408178956,1773182129838,-1000000.0,0.0005,102]
[408178957,1773182129848,-1000000.0,0.0005,102]
[408178958,1773182129858,-1000000.0,0.0005,102]
[408178959,1773182129867,-1000000.0,0.0005,102]
[408178960,1773182129877,-1000000.0,0.0005,105]
[408178961,1773182129887,-1000000.0,0.0005,105]
[408178962,1773182129896,-1000000.0,0.0005,105]
[408178963,1773182129906,-1000000.0,0.0005,107]
[408178964,1773182129916,-1000000.0,0.0005,107]
[408178965,1773182130076,-1000000.0,0.0005,107]
[408178966,1773182130087,-1000000.0,0.0005,109]
[408178967,1773182130098,-1000000.0,0.0005,109]
[408178968,1773182130111,-1000000.0,0.0005,109]
[408178969,1773182130121,-1000000.0,0.0005,111]
[408178970,1773182130131,-1000000.0,0.0005,111]
[408178971,1773182130141,-1000000.0,0.0005,114]
[408178972,1773182130152,-1000000.0,0.0005,114]
[408178973,1773182130162,-1000000.0,0.0005,114]
[408178974,1773182130172,-1000000.0,0.0005,116]
[408178975,1773182130182,-1000000.0,0.0005,116]
[408178976,1773182130191,-1000000.0,0.0005,116]
[408178977,1773182130200,-1000000.0,0.0005,118]
[408178978,1773182130210,-1000000.0,0.0005,118]
[408178979,1773182130220,-1000000.0,0.0005,118]
[408178980,1773182130230,-20000.0,0.0005,120]
[408178981,1773182130239,-6504.0,0.0005,120]
[408178982,1773182130248,-1015.99703051,0.0005,30]
[408178983,1773182130258,-10108.09682043,0.0005,10]
[408178984,1773182130267,-11873.45815564,0.0005,120]
[408178985,1773182130277,-6862.24161913,0.0005,15]
[408178986,1773182130286,-597.26050892,0.0005,120]
[408178987,1773182130295,-511.77002617,0.0005,120]
[408178988,1773182130305,-535.47557116,0.0005,120]
[408178989,1773182130314,-100445.72059714,0.0005,30]
[408178990,1773182130323,-2127.0,0.0005,7]
[408178991,1773182130334,-717.0717478,0.0005,120]
[408178992,1773182130344,-8000.0,0.0005,30]
[408178993,1773182130354,-14112.28973252,0.0005,120]
[408178994,1773182130363,-2379.0,0.0005,120]
[408178995,1773182130372,-2450.76826845,0.0005,99]
[408178996,1773182130382,-1191.99,0.0005,120]
[408178997,1773182130391,-238.26,0.0005,120]
[408178998,1773182130401,-300.54,0.0005,120]
[408178999,1773182130411,-1683.81,0.0005,120]
[408179000,1773182130421,-685.16,0.0005,120]
[408179001,1773182130431,-1087.45,0.0005,120]
[408179002,1773182130440,-969.32,0.0005,120]
[408179003,1773182130450,-300.65,0.0005,10]
[408179004,1773182130459,-11770.24592578,0.0005,120]
[408179005,1773182130469,-11267.73639033,0.0005,120]
[408179006,1773182130478,-783.66,0.0005,120]
[408179007,1773182130487,-20000.0,0.0005,120]
[408179008,1773182130497,-10822.4359794,0.0005,120]
[408179009,1773182130507,-1000000.0,0.0005,120]
[408179010,1773182130516,-1000000.0,0.0005,120]
[408179011,1773182130527,-1000000.0,0.0005,120]
[408179012,1773182130536,-1000000.0,0.0005,120]
[408179013,1773182130546,-1000000.0,0.0005,120]
[408179014,1773182130556,-1000000.0,0.0005,120]
[408179015,1773182130566,-1000000.0,0.0005,120]
[408179016,1773182130576,-1000000.0,0.0005,120]
[408179017,1773182130585,-1000000.0,0.0005,120]
[408179018,1773182130595,-1000000.0,0.0005,120]
[408179019,1773182130604,-1000000.0,0.0005,60]
[408179020,1773182130614,-1000000.0,0.0005,120]
[408179021,1773182130623,-1000000.0,0.0005,120]
[408179022,1773182130633,-1000000.0,0.0005,120]
[408179023,1773182130643,-1000000.0,0.0005,120]
[408179024,1773182130652,-2000000.0,0.0005,120]
[408179025,1773182130662,-2000000.0,0.0005,120]
[408179026,1773182130671,-2000000.0,0.0005,120]
[408179027,1773182130680,-2000000.0,0.0005,120]
[408179028,1773182130690,-267.51,0.0005,120]
[408179029,1773182130699,-40521.48493852,0.0005,120]
[408179030,1773182130708,-1000000.0,0.0005,90]
[408179031,1773182130717,-1000000.0,0.0005,90]
[408179032,1773182130727,-1000000.0,0.0005,90]
[408179033,1773182130736,-1000000.0,0.0005,90]
[408179034,1773182130746,-1000000.0,0.0005,90]
[408179035,1773182130755,-1000000.0,0.0005,95]
[408179036,1773182130765,-1000000.0,0.0005,95]
[408179037,1773182130774,-1000000.0,0.0005,95]
[408179038,1773182130784,-1000000.0,0.0005,95]
[408179039,1773182130793,-1000000.0,0.0005,95]
[408179040,1773182130802,-1000000.0,0.0005,97]
[408179041,1773182130812,-1000000.0,0.0005,97]
[408179042,1773182130821,-412280.0,0.0005,97]
[408179043,1773182130831,-816.77,0.0005,120]
[408179044,1773182130841,-596.65,0.0005,120]
[408179045,1773182130851,-1607.38,0.0005,120]
[408179046,1773182130860,-586.7,0.0005,120]
[408179047,1773182130870,-1500000.0,0.0005,61]
[408179048,1773182130880,-1000000.0,0.0005,27]
[408179049,1773182130889,-1000000.0,0.0005,27]
[408179050,1773182130899,-1000000.0,0.0005,27]
[408179051,1773182130909,-1000000.0,0.0005,32]
[408179052,1773182130918,-1000000.0,0.0005,32]
[408179053,1773182130928,-1000000.0,0.0005,32]
[408179054,1773182130938,-1000000.0,0.0005,32]
[408179055,1773182130947,-1000000.0,0.0005,37]
[408179056,1773182130956,-1000000.0,0.0005,37]
[408179057,1773182130966,-1000000.0,0.0005,37]
[408179058,1773182130975,-673266.90353921,0.0005,37]
[408179059,1773182146282,-660.08,0.00014179,2]
[408179060,1773182146754,3550.4749,0.00014081,2]
[408179061,1773182147022,250.0,0.0001413,2]
[408179062,1773182148890,9750.01,0.0001408,2]
[408179063,1773182148914,10000.01,0.0001408,2]
[408179064,1773182148939,10000.01,0.0001408,2]
[408179065,1773182148964,10000.01,0.0001408,2]
[408179066,1773182148988,10000.01,0.0001408,2]
[408179067,1773182149012,10000.01,0.0001408,2]
[408179068,1773182149036,10000.01,0.0001408,2]
[408179069,1773182149061,10000.01,0.0001408,2]
[408179070,1773182149086,10000.01,0.0001408,2]
[408179071,1773182149113,10000.01,0.0001408,2]
[408179072,1773182149141,10000.01,0.0001408,2]
[408179073,1773182149168,10000.01,0.0001408,2]
[408179074,1773182149194,10000.01,0.0001408,2]
[408179075,1773182149219,10000.01,0.0001408,2]
[408179076,1773182149244,10000.01,0.0001408,2]